bitfinex/quotes_ETHUSD_20251124
["timestamp","ask_amount","ask_price","bid_price","bid_amount"]
[1764001167204,0.6605,2861.9,2860.3,4.44971118]
[1764001167506,0.6605,2861.9,2860.7,2.762]
[1764001167705,0.6605,2861.9,2861.0,0.72559411]
[1764001168017,0.4746,2861.8,2860.0,0.405504]
[1764001168173,0.4746,2861.8,2860.5,0.95359411]
[1764001168517,0.4746,2861.8,2860.5,0.228]
[1764001168819,0.4746,2861.8,2860.5,0.95359411]
[1764001169001,0.405504,2861.7,2860.0,0.4512]
[1764001169180,0.405504,2861.7,2860.3,8.144509]
[1764001169373,0.4746,2861.6,2860.4,0.88701031]
[1764001169615,0.4746,2861.6,2860.2,0.4512]
[1764001169773,0.405504,2861.5,2860.2,0.4512]
[1764001169975,0.405504,2861.5,2860.1,0.228]
[1764001170186,0.405504,2861.3,2860.1,0.228]
[1764001170591,0.4746,2861.2,2860.1,0.228]
[1764001170919,0.643,2860.2,2859.0,0.1035]
[1764001171074,0.405504,2860.0,2859.0,0.1035]
[1764001171270,0.0344,2860.1,2858.5,0.1802]
[1764001171271,0.405504,2859.8,2858.5,0.1802]
[1764001171475,0.405504,2859.6,2858.8,0.228]
[1764001171713,0.405504,2859.6,2858.1,0.4512]
[1764001171918,0.405504,2859.4,2858.2,0.228]
[1764001172116,0.405504,2859.2,2858.2,0.228]
[1764001172483,0.405504,2859.0,2858.2,0.228]
[1764001172747,0.1859,2858.3,2858.2,0.228]
[1764001173120,0.6605,2858.3,2857.7,0.1802]
[1764001173276,0.405504,2859.0,2857.7,0.1802]
[1764001173477,0.4746,2858.8,2857.9,3.425589]
[1764001173716,0.4746,2858.8,2857.9,1.10555294]
[1764001173918,0.4746,2858.8,2857.7,4.13062273]
[1764001174119,0.4746,2858.8,2857.7,7.62994036]
[1764001174327,0.72559411,2860.0,2857.7,7.62994036]
[1764001174328,0.1859,2859.2,2857.9,10.066966]
[1764001174528,0.6605,2859.2,2858.0,0.72559411]
[1764001174712,0.6605,2859.2,2857.8,1.17679411]
[1764001174918,0.6605,2859.2,2858.1,0.72559411]
[1764001175228,0.6605,2859.2,2858.2,0.228]
[1764001175602,0.6605,2859.2,2858.3,0.1183]
[1764001175802,0.1859,2859.2,2858.3,0.1183]
[1764001176002,0.4746,2859.1,2858.2,7.22538104]
[1764001176204,0.1859,2859.4,2858.3,1.1917581]
[1764001176406,0.1859,2859.4,2858.4,5.961868]
[1764001176640,0.1859,2859.4,2858.5,3.21965]
[1764001176958,0.1851,2859.4,2858.5,0.4512]
[1764001177458,0.405504,2860.0,2859.3,0.1191]
[1764001177665,6.74170257,2862.0,2859.3,0.1191]
[1764001177666,0.1859,2859.9,2859.3,0.1191]
[1764001177966,0.1859,2859.9,2859.2,0.228]
[1764001178121,0.4746,2859.8,2859.2,0.228]
[1764001179165,0.1859,2859.9,2859.2,0.228]
[1764001179326,0.6605,2860.2,2859.2,0.228]
[1764001179327,0.6605,2860.2,2859.3,0.7342242]
[1764001179935,0.6605,2860.2,2859.4,3.49723718]
[1764001180163,0.1859,2860.2,2859.4,7.44567436]
[1764001180535,0.1859,2860.2,2859.4,3.94843718]
[1764001180858,0.1859,2860.2,2859.4,7.44567436]
[1764001181037,0.1859,2860.2,2859.5,0.81798986]
[1764001181433,0.1859,2860.2,2859.4,0.4512]
[1764001181852,0.1859,2860.2,2859.5,3.49711488]
[1764001182464,0.1859,2860.4,2859.6,5.098082]
[1764001182626,0.1859,2860.4,2859.6,2.428636]
[1764001182830,0.1859,2860.4,2859.5,7.44542976]
[1764001183139,0.1859,2860.4,2859.6,0.74454298]
[1764001183360,0.6605,2860.4,2859.6,0.74454298]
[1764001183873,0.4746,2860.3,2859.7,0.227]
[1764001184111,0.4746,2860.3,2859.2,0.227]
[1764001184112,0.1871,2859.6,2859.2,0.227]
[1764001184396,7.43453278,2859.3,2857.2,2.161352]
[1764001184604,7.43453278,2859.3,2857.3,0.2341552]
[1764001184605,1.13109811,2859.2,2857.3,0.2341552]
[1764001185458,1.35809811,2859.2,2857.4,5.316113]
[1764001185793,1.13109811,2859.2,2857.5,0.227]
[1764001185994,0.405504,2859.0,2857.7,6.113108]
[1764001186165,0.880104,2859.0,2857.7,2.746046]
[1764001186371,0.880104,2859.0,2857.7,0.4512]
[1764001186571,0.4746,2858.9,2857.7,0.4512]
[1764001186990,0.4746,2858.9,2857.8,2.966325]
[1764001187183,0.4746,2858.9,2857.9,0.3417525]
[1764001187389,0.1925,2857.8,2856.1,3.48764156]
[1764001187699,1.13109811,2857.7,2856.2,3.000354]
[1764001187898,1.13109811,2857.2,2855.8,0.001]
[1764001188097,1.9876612,2857.2,2855.8,0.228]
[1764001188394,0.4522,2857.1,2855.8,0.228]
[1764001188581,0.405504,2857.0,2855.8,0.228]
[1764001188784,0.1925,2856.1,2855.8,0.001]
[1764001189170,0.6447,2856.1,2855.8,0.001]
[1764001189370,1.050204,2856.1,2855.8,0.001]
[1764001190462,1.97123709,2856.1,2855.8,0.001]
[1764001191490,0.405504,2856.0,2855.8,0.001]
[1764001192711,0.405504,2856.0,2855.8,0.001]
[1764001193004,0.4984,2855.9,2855.8,0.001]
[1764001193205,0.903904,2855.9,2855.8,0.001]
[1764001194374,1.08610381,2855.9,2855.8,0.001]
[1764001195422,0.903904,2855.9,2855.8,0.001]
[1764001195708,0.1925,2856.1,2855.8,0.001]
[1764001195909,0.1944,2856.9,2855.9,0.4978]
[1764001196109,0.1944,2856.9,2855.9,0.72559411]
[1764001196601,0.1944,2856.9,2856.0,2.4707]
[1764001196801,0.4984,2857.5,2856.1,0.31962941]
[1764001197016,0.4984,2857.5,2856.1,0.1879]
[1764001197308,0.405504,2857.4,2856.1,0.1879]
[1764001197602,0.405504,2857.2,2856.1,0.1879]
[1764001198004,0.405504,2857.2,2856.2,3.50115538]
[1764001198311,0.405504,2857.2,2856.3,0.36890554]
[1764001198870,0.4984,2857.3,2856.3,0.36890554]
[1764001199334,0.405504,2857.2,2856.3,0.36890554]
[1764001199538,0.405504,2857.2,2856.1,0.1879]
[1764001199833,0.405504,2857.0,2856.1,0.1879]
[1764001200220,0.1944,2856.9,2856.1,0.1879]
[1764001200420,0.1944,2856.9,2855.9,3.50147582]
[1764001200765,0.692,2856.9,2855.8,0.228]
[1764001201045,0.599904,2855.9,2855.8,0.001]
[1764001201422,1.098304,2855.9,2855.8,0.001]
[1764001202000,1.28069381,2855.9,2855.8,0.001]
[1764001202738,1.098304,2855.9,2855.8,0.001]
[1764001203901,0.227,2856.3,2855.8,0.001]
[1764001204233,0.1944,2855.9,2855.8,0.001]
[1764001204719,1.098304,2855.9,2855.8,0.001]
[1764001204915,0.599904,2855.9,2855.8,0.001]
[1764001205299,1.098304,2855.9,2855.8,0.001]
[1764001206107,0.632504,2856.3,2855.8,0.001]
[1764001206605,0.1944,2855.9,2855.8,0.001]
[1764001206806,0.4984,2856.2,2855.8,0.001]
[1764001207858,0.227,2856.5,2855.8,0.001]
[1764001208233,0.72559411,2857.1,2855.8,0.001]
[1764001208234,0.405504,2856.8,2855.8,0.001]
[1764001208444,3.8914,2858.1,2855.8,0.001]
[1764001208445,0.6263,2855.9,2855.8,0.001]
[1764001208648,1.031804,2855.9,2855.8,0.001]
[1764001208825,1.529504,2855.9,2855.8,0.001]
[1764001210957,0.405504,2855.9,2855.8,0.001]
[1764001211353,0.1956,2856.9,2855.8,0.989]
[1764001211511,0.4984,2856.8,2855.8,0.001]
[1764001212123,0.405504,2856.7,2855.8,0.001]
[1764001212567,0.6772,2855.9,2855.8,0.001]
[1764001213072,1.13109811,2856.5,2855.8,0.001]
[1764001213073,0.4984,2856.4,2855.8,0.001]
[1764001213660,0.227,2856.7,2855.8,0.001]
[1764001214059,0.405504,2856.5,2855.8,0.001]
[1764001214255,0.903904,2856.5,2855.8,0.001]
[1764001214473,0.227,2856.7,2855.8,0.001]
[1764001215337,0.7254,2856.7,2855.8,0.001]
[1764001215539,0.1956,2856.9,2855.8,0.001]
[1764001215784,0.1956,2856.9,2855.9,0.4978]
[1764001215934,0.405504,2856.8,2855.9,0.4978]
[1764001216142,0.903904,2856.8,2855.8,0.001]
[1764001216340,0.903904,2856.8,2855.8,0.72659411]
[1764001216576,0.903904,2856.8,2855.9,0.92073625]
[1764001216946,0.903904,2856.8,2855.9,0.4978]
[1764001217762,0.405504,2856.6,2855.8,0.001]
[1764001218276,0.405504,2856.5,2855.8,0.001]
[1764001218870,0.4984,2856.6,2855.8,0.001]
[1764001219172,0.405504,2856.7,2855.8,0.001]
[1764001219540,0.867404,2856.7,2855.8,0.001]
[1764001221269,0.867404,2856.7,2855.8,3.98564577]
[1764001221476,0.405504,2856.7,2855.9,0.47122399]
[1764001221686,0.6575,2856.9,2856.0,0.035014]
[1764001221903,0.405504,2856.8,2855.9,0.95422399]
[1764001222192,0.002,2856.9,2856.0,0.227]
[1764001222395,0.405504,2856.8,2856.0,0.71]
[1764001222550,0.405504,2856.8,2856.0,0.227]
[1764001222747,0.405504,2856.6,2855.8,0.001]
[1764001223151,0.4619,2856.5,2855.8,0.001]
[1764001223352,0.405504,2856.4,2855.8,0.001]
[1764001223756,0.867404,2856.4,2855.8,0.001]
[1764001224086,1.76549011,2856.4,2855.8,0.001]
[1764001224300,1.76469011,2856.4,2855.8,0.001]
[1764001225362,0.4619,2856.8,2855.8,0.03601645]
[1764001225700,0.1939,2856.9,2855.8,0.03601645]
[1764001225701,0.1939,2856.9,2855.8,0.484]
[1764001225883,0.4619,2856.7,2855.8,0.001]
[1764001226274,0.405504,2856.6,2855.8,0.001]
[1764001226662,0.405504,2856.5,2855.8,0.001]
[1764001228965,0.4619,2856.5,2855.8,0.001]
[1764001229220,0.405504,2856.4,2855.8,0.001]
[1764001229561,0.4619,2856.5,2855.8,0.001]
[1764001229562,0.405504,2856.2,2855.8,0.001]
[1764001229762,0.4619,2856.3,2855.8,0.001]
[1764001229763,1.068804,2855.9,2855.8,0.001]
[1764001232608,0.405504,2855.9,2855.8,0.001]
[1764001232809,1.340904,2855.9,2855.8,0.001]
[1764001233217,0.4619,2856.5,2855.8,0.4877]
[1764001233405,0.4619,2856.8,2855.8,0.9707]
[1764001233611,0.32789819,2856.7,2855.9,0.03501523]
[1764001233921,0.32789819,2856.8,2855.9,7.48604632]
[1764001234079,0.32786116,2856.8,2856.0,0.82007463]
[1764001234279,0.32786116,2856.8,2856.0,1.30307463]
[1764001234595,0.405504,2856.8,2856.1,0.667]
[1764001236119,0.405504,2856.8,2856.2,0.483]
[1764001236691,0.405504,2856.8,2856.1,3.68524307]
[1764001236890,0.1939,2856.9,2856.2,0.36852431]
[1764001237123,0.405504,2856.8,2856.1,0.184]
[1764001237281,0.405504,2856.8,2855.8,0.95359411]
[1764001237485,0.867404,2856.8,2855.8,0.95359411]
[1764001237710,0.867404,2856.8,2855.8,1.44752465]
[1764001237884,0.4619,2856.7,2855.8,1.44752465]
[1764001238088,0.405504,2856.6,2855.8,0.72193054]
[1764001238421,0.405504,2856.6,2855.8,0.228]
[1764001238620,7.39382575,2856.9,2855.8,0.228]
[1764001238621,0.405504,2856.8,2855.8,0.228]
[1764001238822,0.405504,2856.5,2855.8,0.228]
[1764001239326,0.405504,2856.8,2855.8,0.228]
[1764001239502,0.405504,2856.4,2855.8,0.228]
[1764001240291,0.405504,2856.4,2855.8,0.001]
[1764001240500,0.867404,2856.4,2855.8,0.001]
[1764001241021,0.405504,2856.2,2855.8,0.001]
[1764001241428,0.867404,2856.2,2855.8,0.001]
[1764001242830,0.6558,2856.9,2856.1,0.6707]
[1764001243036,0.73366274,2856.8,2856.1,0.6707]
[1764001243200,0.1939,2856.9,2856.1,0.6707]
[1764001243405,0.73366178,2856.8,2856.1,0.6707]
[1764001243607,0.405504,2856.8,2856.1,0.6707]
[1764001243916,0.405504,2856.6,2856.1,0.4867]
[1764001244117,0.4721,2856.2,2855.8,0.001]
[1764001244323,0.4619,2856.6,2855.8,0.001]
[1764001244501,0.405504,2856.5,2855.8,0.001]
[1764001244709,1.26219639,2856.5,2855.8,0.001]
[1764001245039,0.405504,2856.3,2855.8,0.001]
[1764001245539,0.4619,2856.2,2855.8,0.001]
[1764001245905,0.405504,2856.4,2855.8,0.001]
[1764001246106,0.867404,2856.4,2855.8,0.001]
[1764001246534,0.4721,2855.9,2855.8,0.001]
[1764001246928,0.405504,2856.2,2855.8,0.001]
[1764001247444,0.867404,2856.2,2855.8,0.001]
[1764001247943,0.866604,2856.2,2855.8,0.001]
[1764001249029,0.404704,2856.2,2855.8,0.001]
[1764001249236,0.4684,2856.1,2855.8,0.001]
[1764001249979,0.405504,2856.0,2855.8,0.001]
[1764001250186,0.871204,2855.9,2855.8,0.001]
[1764001250943,1.065904,2855.9,2855.8,0.001]
[1764001251134,1.531504,2855.9,2855.8,0.001]
[1764001252835,0.871204,2855.9,2855.8,0.001]
[1764001253156,1.19119411,2856.2,2855.8,0.001]
[1764001253157,0.405504,2856.2,2855.8,0.001]
[1764001253468,0.405504,2856.0,2855.8,0.001]
[1764001253672,0.4457,2855.9,2855.8,0.001]
[1764001253869,9.23082386,2855.9,2855.8,0.001]
[1764001254445,10.15390625,2855.9,2855.8,0.001]
[1764001254639,10.48200952,2855.9,2855.8,0.001]
[1764001255141,10.70800952,2855.9,2855.8,0.001]
[1764001255375,2.78248966,2855.9,2855.8,0.001]
[1764001255584,0.405504,2855.9,2855.8,0.001]
[1764001255857,0.1939,2856.9,2855.8,0.001]
[1764001255858,0.4854,2856.5,2855.8,0.4695]
[1764001256038,0.55393871,2856.4,2855.8,0.4695]
[1764001256261,0.1939,2856.9,2855.8,0.9507]
[1764001256457,0.32793267,2856.8,2855.8,0.9507]
[1764001256656,0.002,2856.9,2855.9,0.4812]
[1764001256838,0.002,2856.9,2856.8,0.4685]
[1764001257171,0.002,2856.9,2856.8,0.88149221]
[1764001257346,0.002,2856.9,2856.8,0.9497]
[1764001257547,0.002,2856.9,2856.8,4.45012005]
[1764001257871,0.002,2856.9,2856.8,5.17571416]
[1764001258239,0.002,2856.9,2856.8,1.19409411]
[1764001258640,0.002,2856.9,2856.8,2.16084911]
[1764001259280,0.002,2856.9,2856.8,1.67529411]
[1764001259505,0.002,2856.9,2856.8,5.17571416]
[1764001259863,0.002,2856.9,2856.8,16.67808316]
[1764001260062,0.002,2856.9,2856.8,5.17571416]
[1764001260558,0.002,2856.9,2856.8,7.32481316]
[1764001260761,0.002,2856.9,2856.8,10.42726814]
[1764001260963,0.002,2856.9,2856.8,2.77390909]
[1764001261204,0.002,2856.9,2856.8,1.67529411]
[1764001262696,0.002,2856.9,2856.8,5.17571416]
[1764001262873,0.002,2856.9,2856.8,1.67529411]
[1764001263198,0.002,2856.9,2856.8,0.4685]
[1764001263575,0.002,2856.9,2856.7,0.1608]
[1764001263909,0.002,2856.9,2855.8,0.001]
[1764001263910,0.5494,2856.8,2856.1,0.1883]
[1764001264059,0.405504,2856.7,2855.9,0.226]
[1764001264265,0.405504,2856.7,2855.8,0.001]
[1764001264460,0.1915,2856.9,2855.8,0.51721645]
[1764001264697,0.405504,2856.8,2855.8,3.98383725]
[1764001264872,0.405504,2856.8,2855.9,0.74865879]
[1764001265078,0.405504,2856.8,2855.9,4.25015652]
[1764001265287,0.405504,2856.8,2856.0,0.4812]
[1764001265803,0.405504,2856.8,2856.1,0.1565]
[1764001265998,0.002,2856.9,2856.2,0.4812]
[1764001266362,0.002,2856.9,2856.1,0.1565]
[1764001266562,0.002,2856.9,2856.3,0.4812]
[1764001267317,0.405504,2856.8,2856.1,0.1565]
[1764001267686,0.405504,2856.8,2856.1,0.88209411]
[1764001267907,0.405504,2856.8,2856.1,0.1565]
[1764001268082,0.002,2856.9,2856.2,0.4812]
[1764001268297,0.002,2856.9,2856.7,0.4685]
[1764001268497,0.002,2856.9,2856.8,0.4685]
[1764001269010,0.002,2856.9,2856.3,0.96765721]
[1764001269432,0.002,2856.9,2856.3,0.4812]
[1764001269735,0.1971,2856.9,2856.1,0.1565]
[1764001270024,0.1971,2856.9,2856.2,0.95159411]
[1764001270232,0.002,2856.9,2856.2,0.95159411]
[1764001270441,0.002,2856.9,2856.3,0.4812]
[1764001270724,0.002,2856.9,2856.8,0.4685]
[1764001271224,0.002,2856.9,2856.5,0.4812]
[1764001271632,0.002,2856.9,2856.6,1.19635511]
[1764001271936,0.0012,2856.9,2856.6,0.470761]
[1764001272504,0.6817,2856.9,2856.4,0.72559411]
[1764001272693,0.1963,2856.9,2856.4,0.72559411]
[1764001273330,0.6817,2856.9,2856.4,0.72559411]
[1764001273527,0.0012,2856.9,2856.8,0.4685]
[1764001273932,1.126,2856.9,2856.0,0.4812]
[1764001274131,0.0048,2856.6,2855.8,0.227]
[1764001274524,0.0048,2856.6,2855.8,0.95259411]
[1764001275064,1.040504,2855.9,2855.8,0.001]
[1764001275361,1.525904,2855.9,2855.8,0.001]
[1764001275983,0.900104,2855.8,2855.5,0.001]
[1764001276137,7.81502975,2855.6,2855.5,0.001]
[1764001276328,1.13109811,2855.5,2855.2,0.001]
[1764001276524,1.62999811,2855.5,2855.2,0.001]
[1764001277244,1.85599811,2855.5,2855.2,0.001]
[1764001277562,2.7389905,2855.5,2855.2,0.001]
[1764001277943,2.01339639,2855.5,2855.2,0.001]
[1764001279162,1.30199639,2855.5,2855.2,0.001]
[1764001279470,0.0135,2855.5,2855.2,0.001]
[1764001280028,0.889004,2855.5,2855.2,0.001]
[1764001280547,0.419004,2855.5,2855.2,0.001]
[1764001280723,0.405504,2855.5,2855.2,0.001]
[1764001280925,0.47,2855.8,2855.2,0.001]
[1764001281125,0.46,2855.5,2855.2,0.001]
[1764001281331,0.865504,2855.5,2855.2,0.001]
[1764001281530,1.335404,2855.5,2855.2,0.001]
[1764001281724,2.16633698,2855.5,2855.2,0.001]
[1764001282790,1.335404,2855.5,2855.2,0.001]
[1764001282988,0.865504,2855.5,2855.2,0.001]
[1764001283182,0.405504,2855.5,2855.2,0.001]
[1764001283552,0.1951,2855.9,2855.2,0.001]
[1764001283849,0.8911,2855.9,2855.2,0.001]
[1764001284066,0.6651,2855.9,2855.2,0.001]
[1764001284452,0.405504,2855.8,2855.2,0.001]
[1764001284857,0.1951,2855.9,2855.2,0.001]
[1764001285069,0.226,2856.0,2855.2,0.001]
[1764001285246,0.405504,2855.9,2855.2,0.001]
[1764001286858,0.405504,2856.0,2855.5,0.4525]
[1764001287082,0.405504,2856.0,2855.2,0.4535]
[1764001287681,0.1949,2856.2,2855.2,3.50337752]
[1764001287894,0.631504,2856.1,2855.4,0.80393775]
[1764001288388,0.631504,2856.1,2855.5,0.4525]
[1764001288752,0.631504,2856.1,2855.4,0.35143775]
[1764001289092,0.631504,2856.1,2855.5,0.4525]
[1764001289261,1.42159411,2856.4,2855.5,0.4525]
[1764001290319,1.42159411,2856.4,2855.5,3.95445772]
[1764001290519,0.226,2856.4,2855.5,3.95444488]
[1764001290662,0.405504,2856.3,2855.5,0.4525]
[1764001290975,1.63604698,2856.3,2855.4,0.001]
[1764001291172,0.405504,2856.0,2855.4,0.001]
[1764001291377,0.405504,2855.8,2855.4,0.001]
[1764001291767,0.865704,2855.5,2855.4,0.001]
[1764001291977,0.405504,2855.5,2855.4,0.001]
[1764001292179,0.405504,2855.8,2855.4,0.4961]
[1764001293001,0.875504,2855.8,2855.4,0.001]
[1764001293403,0.405504,2855.8,2855.4,0.001]
[1764001293786,0.696,2856.1,2855.4,0.001]
[1764001293983,0.226,2856.1,2855.4,0.4535]
[1764001294419,0.405504,2856.0,2855.4,0.4535]
[1764001294710,0.226,2856.5,2855.4,0.4535]
[1764001294899,0.40870981,2856.5,2855.4,0.4535]
[1764001295070,0.405504,2856.3,2855.4,0.4535]
[1764001295471,0.874704,2856.3,2855.4,0.4535]
[1764001295871,0.47,2856.2,2855.4,0.4535]
[1764001296499,0.47,2856.2,2855.4,0.001]
[1764001296818,0.696,2856.5,2855.4,0.4535]
[1764001297035,1.53586995,2856.5,2855.4,0.4535]
[1764001297238,1.53586995,2856.5,2855.4,3.95562964]
[1764001297435,0.002,2855.8,2855.4,3.95562964]
[1764001297736,0.359504,2856.4,2855.5,0.4525]
[1764001297921,0.359504,2856.4,2855.7,0.4951]
[1764001297922,0.361504,2856.4,2855.7,0.4951]
[1764001299001,0.47,2856.3,2855.5,0.39556912]
[1764001299203,0.47,2856.3,2855.4,0.001]
[1764001299825,0.405504,2856.2,2855.4,0.001]
[1764001300029,0.405504,2856.2,2855.4,0.4535]
[1764001300353,0.002,2856.4,2856.1,0.684]
[1764001300639,0.002,2856.4,2856.0,0.1889]
[1764001300851,0.002,2856.4,2855.5,0.226]
[1764001300852,0.472,2856.4,2855.5,0.4149]
[1764001301150,0.472,2856.4,2855.6,0.4525]
[1764001302155,0.405504,2856.3,2855.6,0.4525]
[1764001302356,0.405504,2856.3,2855.5,0.4149]
[1764001302554,0.405504,2856.2,2855.5,0.4149]
[1764001303046,0.228,2856.4,2855.5,0.4149]
[1764001303210,0.405504,2856.1,2855.5,0.4149]
[1764001304825,0.405504,2856.1,2855.5,4.36941122]
[1764001305020,0.002,2856.4,2856.0,0.4951]
[1764001305221,0.407504,2856.4,2856.0,0.4951]
[1764001306024,0.4602,2856.1,2855.6,0.88954112]
[1764001306349,0.405504,2856.0,2855.5,0.4149]
[1764001306756,0.47,2856.3,2855.5,0.4149]
[1764001306757,0.405504,2856.2,2855.5,0.4149]
[1764001307258,0.47,2856.2,2855.5,0.4149]
[1764001307429,0.405504,2856.1,2855.4,0.001]
[1764001308051,0.405504,2856.0,2855.4,0.001]
[1764001308625,0.407504,2856.4,2855.9,0.4847]
[1764001309031,0.899604,2856.4,2855.9,0.4847]
[1764001309358,0.899604,2856.4,2855.4,0.001]
[1764001309554,0.405504,2856.2,2855.4,0.001]
[1764001309859,0.405504,2856.2,2855.4,0.4609]
[1764001310225,0.405504,2856.0,2855.4,0.001]
[1764001310755,0.181,2855.9,2855.4,0.001]
[1764001310924,0.867,2856.3,2855.4,0.001]
[1764001311125,1.06700981,2856.3,2855.4,0.4609]
[1764001311323,0.002,2856.4,2856.2,0.6216]
[1764001311560,0.002,2856.4,2856.3,0.4661]
[1764001311870,0.002,2856.4,2855.6,0.8752]
[1764001311871,0.4942,2856.3,2855.6,0.8752]
[1764001312163,0.0084,2856.1,2855.6,1.31302737]
[1764001312326,0.0084,2856.1,2855.6,1.08702737]
[1764001312522,0.46,2856.1,2855.4,0.001]
[1764001312720,0.405504,2856.0,2855.4,0.001]
[1764001313220,0.181,2855.9,2855.4,0.001]
[1764001313431,0.405504,2855.9,2855.4,0.001]
[1764001313650,0.865504,2855.9,2855.4,0.001]
[1764001313834,0.586504,2856.2,2855.4,0.001]
[1764001314033,0.405504,2856.0,2855.4,0.001]
[1764001314467,0.46,2856.1,2855.4,0.001]
[1764001314468,0.899704,2855.5,2855.4,0.001]
[1764001314926,0.405504,2855.5,2855.4,0.001]
[1764001315127,1.359704,2855.5,2855.4,0.001]
[1764001315535,0.899704,2855.5,2855.4,0.001]
[1764001315945,0.226,2856.0,2855.4,0.4671]
[1764001316168,0.405504,2855.8,2855.4,0.4671]
[1764001316373,0.405504,2856.1,2855.4,0.4671]
[1764001316556,0.58271381,2856.1,2855.4,0.4671]
[1764001316755,1.04271381,2856.1,2855.4,0.4671]
[1764001316963,0.405504,2855.9,2855.4,0.001]
[1764001317287,0.002,2856.4,2856.0,0.4661]
[1764001317634,0.462,2856.4,2855.7,0.6859]
[1764001317830,0.405504,2856.3,2855.7,0.226]
[1764001318364,0.405504,2856.1,2855.4,0.001]
[1764001318545,0.899704,2855.5,2855.4,0.001]
[1764001318989,1.359704,2855.5,2855.4,0.001]
[1764001319353,1.358904,2855.5,2855.4,0.001]
[1764001319775,0.898904,2855.5,2855.4,0.001]
[1764001320293,0.405504,2855.9,2855.4,0.001]
[1764001320498,0.899704,2855.5,2855.4,0.001]
[1764001320846,0.181,2856.2,2855.4,0.001]
[1764001321051,0.32822855,2856.1,2855.4,0.001]
[1764001321300,0.002,2856.7,2855.4,0.4609]
[1764001321504,0.32818774,2856.6,2856.3,0.6554]
[1764001321652,0.002,2856.7,2855.4,0.4609]
[1764001321850,0.002,2856.7,2855.5,0.4599]
[1764001321851,0.405504,2856.6,2855.5,0.4599]
[1764001322051,0.002,2856.7,2855.5,0.4599]
[1764001322352,0.407504,2856.7,2855.6,7.00378204]
[1764001322566,0.002,2856.7,2855.7,0.7463682]
[1764001322795,0.002,2856.7,2855.7,1.2062682]
[1764001322971,0.002,2856.7,2855.8,0.4599]
[1764001323296,0.002,2856.7,2856.3,0.6554]
[1764001323646,0.002,2856.7,2856.3,1.1153]
[1764001323952,0.002,2856.7,2856.3,0.6554]
[1764001324896,0.002,2856.7,2856.3,4.6163328]
[1764001325191,0.002,2856.7,2856.3,13.43521502]
[1764001325396,0.002,2856.7,2856.3,12.12647102]
[1764001325745,0.002,2856.7,2856.3,8.19451402]
[1764001326195,0.002,2856.7,2856.3,6.15367502]
[1764001326399,0.002,2856.7,2856.3,2.65264222]
[1764001326692,0.002,2856.7,2856.3,0.6554]
[1764001327063,0.002,2856.7,2856.3,4.6163328]
[1764001327829,0.002,2856.7,2856.3,1.1153]
[1764001328033,0.002,2856.7,2856.3,4.6163328]
[1764001328426,0.002,2856.7,2856.3,0.6554]
[1764001329534,0.002,2856.7,2856.3,5.40470816]
[1764001329839,0.002,2856.7,2856.3,12.58854727]
[1764001330695,0.002,2856.7,2856.3,15.16195427]
[1764001330965,0.002,2856.7,2856.4,0.72559411]
[1764001331091,0.002,2857.2,2856.8,0.4661]
[1764001331292,0.002,2857.2,2857.1,4.85371511]
[1764001331701,0.002,2857.2,2857.1,4.34431811]
[1764001332321,0.181,2858.7,2857.2,14.35222511]
[1764001332618,0.181,2858.7,2857.1,1.84089411]
[1764001332619,0.641,2858.7,2857.4,0.4661]
[1764001332789,0.641,2858.7,2857.4,9.88183813]
[1764001332992,0.641,2858.7,2857.4,11.72589187]
[1764001333444,0.405504,2858.6,2857.4,11.72589187]
[1764001334393,0.405504,2858.6,2857.4,11.00029776]
[1764001334735,0.46,2858.4,2857.4,5.80983876]
[1764001334938,0.46,2858.2,2857.4,0.6921]
[1764001335130,0.405504,2858.6,2857.4,4.65168502]
[1764001335325,0.865504,2858.6,2857.4,4.65168502]
[1764001335551,0.405504,2858.4,2857.4,4.65168502]
[1764001335962,0.405504,2858.6,2857.4,4.65168502]
[1764001336127,0.46,2858.4,2857.4,5.37727913]
[1764001336471,0.181,2857.9,2857.4,4.91737913]
[1764001336668,0.181,2857.9,2857.4,0.6921]
[1764001336851,0.181,2857.9,2857.4,0.64518899]
[1764001337058,0.181,2857.9,2857.4,0.226]
[1764001337262,0.641,2857.9,2857.3,0.72559411]
[1764001337466,0.405504,2857.8,2857.1,0.1893]
[1764001337647,0.405504,2857.8,2857.3,0.226]
[1764001337852,0.405504,2857.8,2856.3,1.43757536]
[1764001337853,0.9542,2857.4,2856.3,1.43757536]
[1764001338055,0.0291,2857.2,2856.4,7.00182046]
[1764001338251,0.4891,2857.2,2856.4,3.50091023]
[1764001338439,0.4891,2857.2,2856.5,0.226]
[1764001338659,0.405504,2857.1,2856.5,0.226]
[1764001338979,0.6706,2856.6,2856.5,0.226]
[1764001339278,0.405504,2857.0,2856.5,0.226]
[1764001339583,0.181,2856.9,2856.5,0.226]
[1764001339744,0.4624,2856.6,2856.4,0.226]
[1764001339939,0.4624,2856.6,2856.0,3.50140056]
[1764001339940,0.4624,2856.6,2855.9,3.69078274]